Cogmind - Beta 14 @@@ ROGUE MODE // 2024.09.13 @ 04:14:54 Player: KURIIRI Result: Escaped! Performance ------------- Evolutions (9) 4500 Regions Visited (29) 5800 Robots Destroyed (265) 1325 Value Destroyed (11764) 11764 Prototype IDs (96) 1920 Alien Tech Used (1) 200 Bonus (9061) 9061 TOTAL SCORE: 34570 Bonus ------- High Alert Combat Kills 1077 Follower Combat Kills 278 Entered Garrisons 1000 Used RIF Installer 3000 Aligned with FarCom 300 Met Data Miner 300 Met Zhirov 300 Win 3000 Friendly Fire -194 Cogmind --------- Core Integrity 1349/1600 Matter 178/300 Energy 145/220 System Corruption 0% Temperature Hot (223) Movement Flying (13) Location To Epsilon Eridani Parts ------- > --- POWER (2) -------- Light Antimatter Reactor Micro Antimatter Reactor > --- PROPULSION (9) --- Field Propulsion Array Field Propulsion Array Improved Diametric Drive Improved Q-thruster Cooled Q-thruster Experimental Q-thruster Experimental Q-thruster > --- UTILITY (12) ----- Medium Storage Unit Advanced Visual Processing Unit Advanced Reaction Control System Improved Power Shielding Experimental Utility Shielding Improved Weapon Shielding Hacking Suite Hacking Suite Improved Hacking Suite Improved Hacking Suite Advanced System Shield Advanced System Shield > --- WEAPON (2) ------- Matter Neutralizer Gravity Flail > --- INVENTORY (10) --- Field Propulsion Drive Improved Q-thruster Relay Coupler [NC] (29) Improved Recalibrator HERF Cannon Compact HERF Cannon Improved Plasma Cutter Peak State ------------ > --- POWER ------------ Light Antimatter Reactor Micro Antimatter Reactor > --- PROPULSION ------- Field Propulsion Array Field Propulsion Array Improved Diametric Drive Improved Q-thruster Cooled Q-thruster Experimental Q-thruster Experimental Q-thruster > --- UTILITY ---------- Medium Storage Unit Advanced Visual Processing Unit Core Analyzer Advanced Transmission Jammer Advanced Reaction Control System Improved Power Shielding Experimental Utility Shielding Improved Weapon Shielding Hacking Suite Hacking Suite Advanced System Shield Advanced Corruption Screen > --- WEAPON ----------- Matter Neutralizer Gravity Flail > --- INVENTORY -------- Field Propulsion Drive Improved Q-thruster Improved Hacking Suite Improved Hacking Suite Advanced System Shield Relay Coupler [NC] Improved Recalibrator HERF Cannon Compact HERF Cannon Improved Plasma Cutter [Rating: 167] Favorites ----------- Power Light Nuclear Core Engine Reinforced Deuterium Engine Power Core Light Nuclear Core Reactor Micro Antimatter Reactor Propulsion Cooled VTOL Module Treads Light Treads Wheel Armored Huge Wheel Flight Unit Cooled VTOL Module Utility Hacking Suite Device Advanced Reaction Control System Storage Medium Storage Unit Processor Advanced Targeting Computer Hackware Hacking Suite Protection Improved Medium Armor Plating Weapon Great Axe Energy Gun Advanced Beam Rifle Energy Cannon Guided Plasma Cannon Ballistic Cannon Mini Assault Cannon Launcher Heavy Shock Bomb Launcher Special Weapon Remote Datajack Impact Weapon Impact Mace Slashing Weapon Great Axe Piercing Weapon Heavy Pick Special Melee Weapon Datajack Build | -11 -10 -10 -10 -9 -8 -8 -8 -8 -7 -7 -7 -7 -6 -6 -6 -6 -6 -6 -5 -5 -5 -5 -5 -4 -4 -4 -3 -2 -1 ------- Run | Yrd Mat Min Exi Min Mat Gar Mat Gar Fac Gar Fac Gar Fac Was Fac Low Low Dat Pro Fac Upp Upp Zhi Pro Fac Gar Res Res Acc Slots Evolved 18 | . . . . . 4 . . . 2 . . . 2 . . . . . . 2 . . . . 2 . 2 2 2 Power 1 | . . . . . . . . . . . . . . . . . . . . . . . . . 1 . . . . Propulsion 7 | . . . . . 2 . . . 1 . . . 1 . . . . . . 1 . . . . . . 1 1 . Utility 10 | . . . . . 2 . . . 1 . . . 1 . . . . . . 1 . . . . 1 . 1 1 2 Weapon . | . . . . . . . . . . . . . . . . . . . . . . . . . . . . . . Parts Attached 345 | 6 16 1 . 4 47 2 1 2 52 14 15 17 19 1 11 1 3 . 1 36 9 2 9 . 20 11 7 10 28 Power 44 | 1 1 1 . . 7 1 . . 7 3 4 1 3 . 1 . . . . 2 1 . . . 5 . 1 . 5 Engine 11 | 1 1 1 . . 4 . . . 1 . 1 . 1 . . . . . . 1 . . . . . . . . . Core 25 | . . . . . 3 1 . . 6 3 2 1 2 . 1 . . . . 1 1 . . . 4 . . . . Reactor 8 | . . . . . . . . . . . 1 . . . . . . . . . . . . . 1 . 1 . 5 Propulsion 76 | 2 3 . . . 12 1 . . 14 . 4 1 6 . 2 1 . . 1 6 . . 3 . 5 2 1 5 7 Treads 16 | 2 3 . . . 10 . . . . . . . . . . . . . . . . . . . . . . 1 . Leg . | . . . . . . . . . . . . . . . . . . . . . . . . . . . . . . Wheel 6 | . . . . . 2 1 . . 3 . . . . . . . . . . . . . . . . . . . . Hover . | . . . . . . . . . . . . . . . . . . . . . . . . . . . . . . Flight 54 | . . . . . . . . . 11 . 4 1 6 . 2 1 . . 1 6 . . 3 . 5 2 1 4 7 Utility 113 | 1 5 . . 1 16 . . 1 7 5 2 5 4 1 8 . 3 . . 17 3 1 4 . 5 3 5 4 12 Device 29 | . . . . . . . . . 1 1 2 1 1 . 2 . 1 . . 7 3 1 . . 3 1 2 2 1 Storage 4 | 1 1 . . . 1 . . . 1 . . . . . . . . . . . . . . . . . . . . Processor 9 | . 1 . . . 1 . . . 1 . . . . . 1 . 1 . . . . . . . . . 2 1 1 Hackware 28 | . . . . . 3 . . . 2 4 . 4 1 . 2 . . . . 4 . . 1 . . . . 1 6 Protection 43 | . 3 . . 1 11 . . 1 2 . . . 2 1 3 . 1 . . 6 . . 3 . 2 2 1 . 4 Artifact . | . . . . . . . . . . . . . . . . . . . . . . . . . . . . . . Weapon 112 | 2 7 . . 3 12 . 1 1 24 6 5 10 6 . . . . . . 11 5 1 2 . 5 6 . 1 4 Energy Gun 19 | 2 3 . . 1 8 . . . . . 1 . . . . . . . . . . . . . 1 2 . . 1 Energy Cannon 39 | . 3 . . 2 1 . 1 1 16 2 . 5 1 . . . . . . 1 1 . . . 2 2 . . 1 Ballistic Gun . | . . . . . . . . . . . . . . . . . . . . . . . . . . . . . . Ballistic Cannon 3 | . . . . . 2 . . . . . . . . . . . . . . . . . . . . . . 1 . Launcher 15 | . . . . . . . . . 1 2 2 2 1 . . . . . . 3 3 . . . 1 . . . . Special Weapon 7 | . . . . . . . . . 1 1 1 2 1 . . . . . . . . . 1 . . . . . . Impact Weapon 12 | . . . . . . . . . 6 1 1 1 1 . . . . . . 1 . . . . . . . . 1 Slashing Weapon 8 | . . . . . 1 . . . . . . . . . . . . . . 4 1 1 1 . . . . . . Piercing Weapon 8 | . . . . . . . . . . . . . 2 . . . . . . 2 . . . . 1 2 . . 1 Special Melee Weapon 1 | . 1 . . . . . . . . . . . . . . . . . . . . . . . . . . . . Unidentified Prototypes 30 | . . . . . 6 . . . 3 . 7 1 2 . . . . . . 2 . . 2 . . . . 1 6 Corrupted Parts 1 | . . . . . . . . . . . . . . . . . . . . 1 . . . . . . . . . System Corruption 4 | . . . . . . . . . . . . . . . . . . . . 4 . . . . . . . . . Parts Lost 52 | . . . . . 9 . . . 3 1 . . . . 4 2 . . 1 6 4 . . 1 3 6 1 8 3 Power 6 | . . . . . 1 . . . 1 1 . . . . . . . . . . 1 . . . . 1 . 1 . Propulsion 12 | . . . . . 3 . . . 1 . . . . . 1 . . . 1 1 1 . . 1 . 1 . 2 . Utility 27 | . . . . . 3 . . . . . . . . . 3 2 . . . 5 . . . . 2 4 1 4 3 Weapon 7 | . . . . . 2 . . . 1 . . . . . . . . . . . 2 . . . 1 . . 1 . Highest Loss Streak 6 | . . . . . 3 . . . 1 1 . . . . 2 4 . . 1 1 2 . . 1 2 6 1 5 2 To Critical Strikes . | . . . . . . . . . . . . . . . . . . . . . . . . . . . . . . Average Slot Usage (%) 89 | . 95 100 71 98 94 81 81 81 87 98 99 99 95 100 98 83 91 100 100 85 81 82 91 91 79 68 66 76 84 Engine 3 | . 13 14 14 14 4 8 . . . . . . . . . . . . . 4 2 . . . . . . . . Core 4 | . . . . . 4 . 9 9 6 7 7 7 5 6 6 6 6 6 6 . 2 5 5 5 8 7 4 3 . Treads 7 | . 27 28 28 28 31 . . . . . . . . . . . . . . . . . . . . . . . . Wheel 3 | . . . . . . 18 18 18 7 . . . . . . . . . . . . . . . . . . . . Flight 18 | . . . . . . . . . 21 38 38 38 40 40 39 33 40 40 40 35 29 29 32 32 22 18 19 20 26 Device 1 | . . . . . . . . . . 2 . . . . 1 . . 6 6 5 4 5 5 5 6 3 1 7 6 Storage 7 | . 14 14 14 14 9 9 9 9 7 7 7 7 6 6 6 6 6 6 6 5 5 5 5 5 5 5 4 4 4 Processor 4 | . 1 . . . 7 9 9 9 5 . . . . . . . 3 . . . . . . . . . 3 8 10 Hackware 15 | . . . . . 8 9 9 9 17 26 29 29 24 26 23 20 20 20 20 18 23 23 23 23 21 16 9 11 14 Protection 6 | . 12 14 14 14 10 9 9 9 4 . . . 4 6 5 2 . 6 6 3 5 5 5 5 5 9 9 7 6 Energy Gun 2 | . 12 14 . 13 6 . . . . . . . . . . . . . . . . . . . . 3 4 1 . Energy Cannon 5 | . 12 14 . 12 2 9 9 9 8 4 . 4 5 6 6 6 6 6 6 2 . . . . 3 . . . 3 Impact Weapon 1 | . . . . . . . . . 5 4 5 6 4 . . . . . . . . . . . . . . . 3 Slashing Weapon 2 | . . . . . 6 9 9 9 . . . . . . . . . . . 2 1 . 3 5 1 . . . . Peak Build Rating 167 | 6 9 9 9 14 45 45 44 45 57 56 62 65 74 74 75 68 70 70 70 92 86 85 97 95 115 113 122 128 167 Average Rating 56 | 4 7 9 6 11 30 43 41 44 48 52 50 60 65 73 71 61 66 70 69 81 81 81 90 92 104 94 104 119 153 On Entrance 59 | . 6 9 9 7 14 45 43 41 45 50 50 62 56 74 73 68 63 70 70 68 92 82 85 95 89 104 92 122 96 Naked Turns . | . . . . . . . . . . . . . . . . . . . . . . . . . . . . . . Heaviest Build 62 | 14 24 24 18 29 54 54 44 47 49 29 27 30 31 32 34 28 31 31 31 47 39 36 36 36 47 46 53 58 62 Greatest Support 82 | 40 40 40 40 40 82 56 56 56 72 25 27 27 35 35 46 35 32 32 35 50 38 38 44 53 51 51 58 66 66 Greatest Overweight (x) 9 | 1 . . . . 1 . . . 9 1 . 1 . . . . . . . 1 1 . . . 1 . . . 1 Average Overweight (x) . | . . . . . . . . . . . . . . . . . . . . . . . . . . . . . . Largest Inventory Capacity 15 | 8 10 10 10 10 15 15 15 15 15 10 10 10 10 10 10 10 10 10 10 10 10 10 10 10 10 10 10 10 10 Average Capacity 11 | 7 9 10 10 10 13 15 15 15 12 10 10 10 10 10 10 10 10 10 10 10 10 10 10 10 10 10 10 10 10 Most Carried 15 | 2 10 10 10 10 15 15 14 15 15 10 10 10 10 10 10 10 10 10 10 10 10 10 10 10 10 10 9 10 10 Average Carried 10 | . 6 9 9 8 12 9 13 14 12 9 9 9 9 10 8 9 10 10 9 9 8 9 10 10 9 9 7 9 9 Final Capacity 15 | 8 10 10 10 10 15 15 15 15 10 10 10 10 10 10 10 10 10 10 10 10 10 10 10 10 10 10 10 10 10 Final Carried 15 | 2 10 10 10 10 15 12 14 15 10 10 10 10 10 10 9 10 10 10 10 10 10 10 10 10 9 7 8 9 7 Class Distribution -------------------- 43% | Hacker-Sprinter 34% | Mutant 13% | Hacker-Mutant 5% | Scavenger-Mutant Dominant Class ---------------- Mutant | -10/Materials Mutant | -10/Mines Mutant | -10/Exiles Mutant | -9/Mines Mutant | -8/Materials Mutant | -8/Garrison Mutant | -8/Materials Mutant | -8/Garrison Hacker-Mutant | -7/Factory Hacker-Mutant | -7/Garrison Hacker-Sprinter | -7/Factory Hacker-Mutant | -7/Garrison Hacker-Sprinter | -6/Factory Hacker-Sprinter | -6/Waste Hacker-Sprinter | -6/Factory Hacker-Sprinter | -6/Lower Caves Hacker-Sprinter | -6/Lower Caves Hacker-Sprinter | -6/Data Miner Hacker-Sprinter | -5/Proximity Caves Hacker-Sprinter | -5/Factory Hacker-Sprinter | -5/Upper Caves Hacker-Sprinter | -5/Upper Caves Hacker-Sprinter | -5/Zhirov Hacker-Sprinter | -4/Proximity Caves Hacker-Sprinter | -4/Factory Hacker-Sprinter | -4/Garrison Hacker-Sprinter | -3/Research Hacker-Sprinter | -2/Research Hacker-Sprinter | -1/Access Resources | -11 -10 -10 -10 -9 -8 -8 -8 -8 -7 -7 -7 -7 -6 -6 -6 -6 -6 -6 -5 -5 -5 -5 -5 -4 -4 -4 -3 -2 -1 ----------- Run | Yrd Mat Min Exi Min Mat Gar Mat Gar Fac Gar Fac Gar Fac Was Fac Low Low Dat Pro Fac Upp Upp Zhi Pro Fac Gar Res Res Acc Matter Collected 4733 | 143 239 95 . 56 584 207 . 69 525 411 164 366 155 80 71 25 20 . 30 449 182 30 . 173 193 168 25 100 173 Remotely . | . . . . . . . . . . . . . . . . . . . . . . . . . . . . . . Salvage Created 11404 | . 614 104 . 46 2378 504 . 258 1387 355 304 398 431 289 307 41 . . 63 1607 416 . . 210 468 540 90 104 490 Parts 543 | . 51 3 . 6 122 33 . 12 50 23 13 19 10 2 27 3 . . 4 72 13 . . 15 30 18 5 3 9 Haulers Intercepted 16 | . 1 . . . 4 . . . 3 . 1 . 1 . . . . . . 3 . . . . 1 . . . 2 Recyclers Shooed 3 | . . . . 1 . . . . 1 . . . . . . . . . . 1 . . . . . . . . . Parts Field Recycled . | . . . . . . . . . . . . . . . . . . . . . . . . . . . . . . Retrieved Matter . | . . . . . . . . . . . . . . . . . . . . . . . . . . . . . . Parts Self-Destructed 28 | . . . . . . . . . . . . . . . . 3 . . 3 . 6 7 . 9 . . . . . Prevented 11 | . . . . . . . . . . . . . . . . 2 . . . . 5 . . 4 . . . . . Kills | -11 -10 -10 -10 -9 -8 -8 -8 -8 -7 -7 -7 -7 -6 -6 -6 -6 -6 -6 -5 -5 -5 -5 -5 -4 -4 -4 -3 -2 -1 ------- Run | Yrd Mat Min Exi Min Mat Gar Mat Gar Fac Gar Fac Gar Fac Was Fac Low Low Dat Pro Fac Upp Upp Zhi Pro Fac Gar Res Res Acc Combat Hostiles Destroyed 191 | . 14 2 . . 33 15 . 5 21 13 12 11 5 . 3 1 . . 1 25 7 . . 7 6 7 . 1 2 Melee 53 | . . . . . 12 3 . . 6 . . 2 2 . 3 1 . . 1 12 1 . . 2 5 2 . 1 . Guns 24 | . 6 . . . 13 . . . . . . . . . . . . . . . . . . . . 5 . . . Cannons 51 | . 8 2 . . 8 12 . 5 8 5 . 2 . . . . . . . . . . . . 1 . . . . AOE 51 | . . . . . . . . . 3 8 11 7 . . . . . . . 13 4 . . 5 . . . . . Classes Destroyed 19 | . 7 . . 2 6 1 . . 1 . 1 . . . . . . . . . . . . 1 . . . . . Worker 8 | . . . . 2 5 . . . 1 . . . . . . . . . . . . . . . . . . . . Builder 6 | . 1 . . 1 2 . . . 1 . . . . . . . . . . 1 . . . . . . . . . Tunneler 2 | . . . . 1 . . . . . . . . . . . . . . . 1 . . . . . . . . . Hauler 16 | . 1 . . . 4 . . . 3 . 1 . 1 . . . . . . 3 . . . . 1 . . . 2 Recycler 7 | . 1 . . . 4 . . . 2 . . . . . . . . . . . . . . . . . . . . Operator 8 | . 2 . . . 2 . . . 2 . . . . . 2 . . . . . . . . . . . . . . Drone 2 | . . . . . . . . . . . . . . . . . . . . . . . . 2 . . . . . Watcher 26 | . 2 . . . 3 . . . 6 . . . 1 . 3 . . . . 2 . . . . 2 . 2 . 5 Swarmer 44 | . 6 . . . . 9 . . 4 7 . . . . . . . . . 10 2 . . 4 2 . . . . Cutter 2 | . . . . . 2 . . . . . . . . . . . . . . . . . . . . . . . . Grunt 67 | . 8 2 . . 17 3 . 4 6 7 . 6 3 . . . . . . 8 2 . . . 1 . . . . Brawler 5 | . . . . . . . . . 1 . . . . . . . . . . . . . . . . 4 . . . Duelist 3 | . . . . . 1 . . . . . . 2 . . . . . . . . . . . . . . . . . Protector 3 | . . . . . . . . . . . 3 . . . . . . . . . . . . . . . . . . Sentry 26 | . . . . . 8 2 . 1 5 . . . 2 . 2 . . . . 2 1 . . . 1 1 . 1 . Specialist 7 | . . . . . 2 . . . . . 4 1 . . . . . . . . . . . . . . . . . Hunter 13 | . . . . . 2 . . . 2 . 1 1 . . . . . . 1 1 2 . . 1 . . . . 2 Programmer 19 | . . . . . . 1 . . 3 . 4 1 . . 1 1 . . . 4 . . . . 2 2 . . . Heavy 1 | . . . . . 1 . . . . . . . . . . . . . . . . . . . . . . . . Best Kill Streak 12 | . 6 1 . 3 4 4 . 3 5 10 12 4 4 . 2 1 . . 1 7 5 . . 3 1 3 1 1 3 Combat Bots Only 11 | . 3 1 . . 3 4 . 3 4 10 11 4 4 . 1 1 . . 1 5 5 . . 3 1 3 . 1 2 Max Kills in Single Turn 8 | . 2 1 . 2 2 1 . 1 1 3 8 2 1 . 1 1 . . 1 2 1 . . 2 1 1 1 1 1 Gunslinging . | . . . . . . . . . . . . . . . . . . . . . . . . . . . . . . Exploded 8 | . . . . . . . . . 1 3 8 2 . . . . . . . 2 1 . . 2 . . . . . Melee 1 | . . . . . 1 1 . . 1 . . 1 1 . 1 1 . . 1 1 1 . . 1 1 1 . 1 . Uniques/NPCs Destroyed . | . . . . . . . . . . . . . . . . . . . . . . . . . . . . . . Combat | -11 -10 -10 -10 -9 -8 -8 -8 -8 -7 -7 -7 -7 -6 -6 -6 -6 -6 -6 -5 -5 -5 -5 -5 -4 -4 -4 -3 -2 -1 -------- Run | Yrd Mat Min Exi Min Mat Gar Mat Gar Fac Gar Fac Gar Fac Was Fac Low Low Dat Pro Fac Upp Upp Zhi Pro Fac Gar Res Res Acc Hostile Shots Fired 1292 | . 57 9 . . 156 76 2 3 164 29 28 27 61 . 122 9 . . 12 125 50 . . 37 118 48 . 91 68 Missed 553 | . 15 4 . . 40 19 1 2 61 15 20 12 29 . 60 4 . . 6 64 22 . . 21 64 23 . 39 32 Damage Taken 12054 | . 384 75 . . 1902 602 14 18 1365 359 139 236 320 . 722 85 . . 107 1260 405 . . 293 994 573 86 1247 868 Core 2207 | . 39 . . . 377 89 . . 208 129 16 58 125 . 162 24 . . . 188 69 . . 98 116 19 . 239 251 Absorbed by Shields . | . . . . . . . . . . . . . . . . . . . . . . . . . . . . . . Redirected to Shielding 120 | . . . . . . . . . . . . . . . . . . . . . . . . . . . . . 120 Regen/Repaired (Parts) 1311 | . 68 . . . . . . . 230 . 134 . . . 20 . . . . 466 . . . . 393 . . . . Core Remaining (%) 72 | 100 . . . 84 . . . 15 . . . 41 . . . . . . 63 . . . . 64 . 88 100 83 84 Volleys Fired 519 | . 46 21 . 2 106 48 2 12 63 26 6 13 10 . 16 . . . . 19 12 . 7 8 13 68 2 2 17 Largest 2 | . 2 2 . 2 2 1 1 1 2 1 1 1 1 . 1 . . . . 1 1 . 1 1 1 1 1 1 1 Hottest 225 | . 105 105 . 105 122 120 30 120 120 120 45 120 90 . 90 . . . . 120 120 . 5 46 225 81 225 225 105 Shots Fired 670 | . 86 31 . 4 170 47 2 12 98 26 6 13 10 . 17 . . . . 19 12 . 7 8 13 68 2 2 17 Gun 259 | . 40 22 . 2 130 . . . . . . . . . . . . . . . . . . . 2 59 2 2 . Cannon 329 | . 46 9 . 2 40 47 2 12 88 12 . 7 7 . 17 . . . . 1 4 . . . 9 9 . . 17 Launcher 60 | . . . . . . . . . 8 9 3 4 . . . . . . . 18 8 . . 8 2 . . . . Special 22 | . . . . . . . . . 2 5 3 2 3 . . . . . . . . . 7 . . . . . . Kinetic . | . . . . . . . . . . . . . . . . . . . . . . . . . . . . . . Thermal 493 | . 46 9 . 2 157 47 2 12 88 12 . 7 7 . 17 . . . . 1 4 . . . 2 59 2 2 17 Explosive 24 | . . . . . . . . . 8 9 3 4 . . . . . . . . . . . . . . . . . Electromagnetic 131 | . 40 22 . 2 13 . . . . . . . . . . . . . . 18 8 . . 8 11 9 . . . Robot Hit Streak 21 | . 10 3 . . 21 17 . . 18 4 7 3 2 . 1 . . . . 4 5 . 2 3 8 9 . . . Robot Miss Streak 4 | . 4 2 . . 4 . . . 3 3 2 4 1 . 1 . . . . 2 1 . 2 . 2 3 . . . Penetration Max . | . . . . . . . . . . . . . . . . . . . . . . . . . . . . . . Secondary Targets . | . . . . . . . . . . . . . . . . . . . . . . . . . . . . . . Shots Hit Robots 543 | . 49 8 . . 138 15 . . 94 7 11 8 15 4 21 1 . . 6 45 6 . 4 5 29 55 3 5 14 Core Hits 356 | . 23 4 . 2 58 14 . 7 33 15 48 29 3 2 8 1 . . 2 45 10 . . 9 16 20 2 2 3 Critical Kills 3 | . . . . . . . . . 3 . . . . . . . . . . . . . . . . . . . . Critical Parts Destroyed 20 | . . . . . . . . . 10 . 2 . 3 . . . . . . . . . . . . . . . 5 Critical Strikes 53 | . . . . . 13 . . . 13 . 2 . 3 . 4 . . . 1 7 . . . . 3 . 1 1 5 Burn 8 | . . . . . 8 . . . . . . . . . . . . . . . . . . . . . . . . Corrupt 1 | . . . . . . . . . . . . . . . . . . . . . . . . . 1 . . . . Smash 23 | . . . . . . . . . 13 . 2 . 3 . . . . . . . . . . . . . . . 5 Sever 12 | . . . . . 5 . . . . . . . . . . . . . . 6 . . . . 1 . . . . Impale 9 | . . . . . . . . . . . . . . . 4 . . . 1 1 . . . . 1 . 1 1 . Melee Attacks 802 | . 3 . . . 90 44 5 4 108 7 26 39 58 4 71 2 . . 7 116 4 . . 11 58 10 7 45 83 Impact 307 | . . . . . . . . . 108 7 26 39 47 . . . . . . . . . . . . . . . 80 Slashing 249 | . . . . . 90 44 5 4 . . . . . . . . . . . 67 4 . . 11 24 . . . . Piercing 243 | . . . . . . . . . . . . . 11 4 71 2 . . 7 49 . . . . 34 10 7 45 3 Sneak Attacks 32 | . 3 . . . 11 . . . 6 . . 1 1 . . . . . 1 4 1 . . . 1 . . . 3 Combat Hostiles 3 | . . . . . . . . . . . . 1 . . . . . . . . 1 . . . . . . . 1 Follow-up Attacks . | . . . . . . . . . . . . . . . . . . . . . . . . . . . . . . Damage Inflicted 28509 | . 867 206 . 103 5004 1644 . 419 4385 1162 1954 1072 638 154 980 71 . . 338 3735 821 . . 541 1378 1353 178 209 1297 Guns 3074 | . 359 62 . . 1688 . . . . . . . . . . . . . . . . . . . . 965 . . . Cannons 5884 | . 457 87 . . 1061 1236 . 419 1739 347 . 179 . . 29 . . . . . 100 . . . 124 106 . . . Explosions 6142 | . 36 46 . 83 . . . . 508 815 1604 697 . . . . . . . 1343 536 . . 379 95 . . . . Melee 13301 | . . . . . 2223 408 . . 2108 . 350 196 638 154 951 71 . . 338 2392 185 . . 162 1159 282 178 209 1297 Ramming 108 | . 15 11 . 20 32 . . . 30 . . . . . . . . . . . . . . . . . . . . Kinetic . | . . . . . . . . . . . . . . . . . . . . . . . . . . . . . . Thermal 8475 | . 493 133 . 83 2673 1236 . 419 1739 347 . 179 . . 29 . . . . . 100 . . 79 . 965 . . . Explosive 3624 | . . . . . . . . . 508 815 1604 697 . . . . . . . . . . . . . . . . . Electromagnetic 3001 | . 359 62 . . 76 . . . . . . . . . . . . . . 1343 536 . . 300 219 106 . . . Impact 4354 | . . . . . . . . . 2108 . 350 196 520 . . . . . . . . . . . . . . . 1180 Slashing 4658 | . . . . . 2223 408 . . . . . . . . . . . . . 1308 185 . . 162 372 . . . . Piercing 4289 | . . . . . . . . . . . . . 118 154 951 71 . . 338 1084 . . . . 787 282 178 209 117 Highest Corruption 11 | . 1 1 1 1 8 8 8 8 3 3 . . . . 1 . . . . 6 1 . . 1 . 11 . 3 . Average Corruption 3 | . 1 1 1 1 5 8 8 8 2 2 . . . . 1 . . . . 2 1 . . 1 . 8 . 2 . Corruption Purged 12 | . . . . . . . . . . 3 . . . . 3 . . . . 5 1 . . . . . . . . Corruption Blocked 2 | . . . . . . . . . . . . . . . . . . . . . . . . . . . . . 2 Effects 261 | . 3 6 1 2 88 56 4 12 52 . . . . . 7 . . . . 20 2 . . . . 6 . 2 . Message Errors 52 | . . . . 1 16 11 1 4 13 . . . . . . . . . . 4 . . . . . 1 . 1 . Matter Fused 68 | . 1 2 1 1 21 11 2 3 14 . . . . . 1 . . . . 7 2 . . . . 1 . 1 . Heat Flow Errors 26 | . . . . . 9 7 . 2 6 . . . . . . . . . . 1 . . . . . 1 . . . Energy Discharges 44 | . . . . . 19 12 . 2 4 . . . . . 3 . . . . 3 . . . . . 1 . . . Parts Rejected 4 | . . . . . 2 . . . 1 . . . . . . . . . . . . . . . . 1 . . . Parts Fused 1 | . . . . . 1 . . . . . . . . . . . . . . . . . . . . . . . . Data Loss (minor) 37 | . 1 3 . . 14 10 1 1 3 . . . . . 1 . . . . 3 . . . . . . . . . Data Loss (major) 14 | . . . . . 2 2 . . 9 . . . . . . . . . . 1 . . . . . . . . . Misfires 4 | . 1 1 . . . . . . 1 . . . . . 1 . . . . . . . . . . . . . . Alerts 9 | . . . . . 4 2 . . 1 . . . . . 1 . . . . 1 . . . . . . . . . Misdirections 1 | . . . . . . . . . . . . . . . . . . . . . . . . . . 1 . . . Weapon Failures 1 | . . . . . . 1 . . . . . . . . . . . . . . . . . . . . . . . Overload Shots 4 | . . . . . . . . . . . . . . . . . . . . . . . . . 1 . 2 1 . Overflow Damage 3188 | . 53 . . 31 358 44 . . 1020 74 162 . 232 . 112 . . . 94 167 4 . . 3 49 24 47 . 714 Projectiles 127 | . 21 . . . 24 21 . . 20 33 . . . . . . . . . . . . . . 8 . . . . Explosions 143 | . 32 . . 31 . . . . 10 41 . . . . . . . . . 22 4 . . 3 . . . . . Melee 2918 | . . . . . 334 23 . . 990 . 162 . 232 . 112 . . . 94 145 . . . . 41 24 47 . 714 Knockbacks 21 | . . . . . . . . . 15 . 2 . 1 . . . . . . . . . . . . . . . 3 Impact 20 | . . . . . . . . . 14 . 2 . 1 . . . . . . . . . . . . . . . 3 Kinetic . | . . . . . . . . . . . . . . . . . . . . . . . . . . . . . . Secondary 1 | . . . . . . . . . 1 . . . . . . . . . . . . . . . . . . . . Self-Inflicted Damage 337 | . . . . . . . . . 47 163 . 84 . . . . . . . 16 6 . . 21 . . . . . Shots 13 | . . . . . . . . . 2 4 . 4 . . . . . . . 1 1 . . 1 . . . . . Rammed 13 | . 3 2 . 4 3 . . . 1 . . . . . . . . . . . . . . . . . . . . Targets Rammed 18 | . 4 2 . 6 5 . . . 1 . . . . . . . . . . . . . . . . . . . . Kicked . | . . . . . . . . . . . . . . . . . . . . . . . . . . . . . . Crushed 5 | . 1 . . 2 2 . . . . . . . . . . . . . . . . . . . . . . . . Highest Temperature 433 | . 336 252 . 54 372 433 . 344 340 272 . 198 102 . 190 199 . . . 91 264 . 3 251 344 316 384 230 390 Average Temperature 116 | . 116 133 . 28 127 141 . 120 95 104 . 69 42 . 46 112 . . . 31 116 . 2 143 180 136 117 37 116 Received Heat Transfer 2082 | . 87 42 . . 864 54 9 . 150 57 6 72 117 . 96 9 . . . 135 36 . . . 177 . . 135 36 Effects 34 | . 4 1 . . 11 4 . 3 1 1 . . . . . . . . . . . . . . 3 3 . . 3 Shutdowns 3 | . . . . . 2 . . . 1 . . . . . . . . . . . . . . . . . . . . Energy Bleed 9 | . 3 1 . . 4 . . . . . . . . . . . . . . . . . . . . 1 . . . Interference 17 | . . . . . 5 2 . 3 . 1 . . . . . . . . . . . . . . 1 2 . . 3 Matter Decay 3 | . 1 . . . . 1 . . . . . . . . . . . . . . . . . . 1 . . . . Damage (minor) 2 | . . . . . . 1 . . . . . . . . . . . . . . . . . . 1 . . . . Siege Activations . | . . . . . . . . . . . . . . . . . . . . . . . . . . . . . . Robots Corrupted 23 | . . . . . . . . . 9 . 2 . 5 . . . . . . . 2 . . . . . . . 5 Combat Hostiles 12 | . . . . . . . . . 4 . 1 . 3 . . . . . . . 2 . . . . . . . 2 Parts Fried 39 | . . . . . . 2 . . 15 . . . 4 . . . . . . 7 1 . . 2 . . . . 8 Impact Corruptions 60 | . . . . . . . . . 33 . 7 . 8 . . . . . . . . . . . . . . . 12 Robots Melted . | . . . . . . . . . . . . . . . . . . . . . . . . . . . . . . Combat Hostiles . | . . . . . . . . . . . . . . . . . . . . . . . . . . . . . . Parts Melted 27 | . 1 . . . 11 1 . . 5 1 . . . . . . . . . . . . . . 2 6 . . . Heat Transferred 16089 | . 1012 235 . 100 5823 2478 . 801 2472 800 . 400 . . 37 . . . . . 240 . . 100 . 1591 . . . Parts Sabotaged . | . . . . . . . . . . . . . . . . . . . . . . . . . . . . . . Parts Stolen . | . . . . . . . . . . . . . . . . . . . . . . . . . . . . . . Parts Stripped . | . . . . . . . . . . . . . . . . . . . . . . . . . . . . . . Power Chain Reactions 4 | . 1 1 . . . . . . . . . . . . . . . . . 1 . . . 1 . . . . . Alert | -11 -10 -10 -10 -9 -8 -8 -8 -8 -7 -7 -7 -7 -6 -6 -6 -6 -6 -6 -5 -5 -5 -5 -5 -4 -4 -4 -3 -2 -1 ------- Run | Yrd Mat Min Exi Min Mat Gar Mat Gar Fac Gar Fac Gar Fac Was Fac Low Low Dat Pro Fac Upp Upp Zhi Pro Fac Gar Res Res Acc Peak Influence 1603 | . 324 291 . 69 625 1603 819 522 696 1119 590 848 456 107 228 . . . . 619 . . . . 699 744 479 415 751 Initial 781 | . . 53 . . 26 393 781 338 273 464 587 306 445 107 74 . . . . 18 . . . . 257 489 418 269 213 Average 400 | . 190 150 . 53 307 1046 704 443 329 660 422 648 364 107 129 . . . . 231 . . . . 330 634 430 310 417 Maximum Alert Level 5 | . 1 1 . . 2 5 3 2 2 4 2 3 2 . 1 . . . . 2 . . . . 2 3 2 2 3 Low Security (%) 27 | 100 41 80 . 100 37 . . . 27 . 14 . 1 100 73 . . . . 53 . . . . 8 . . . . Level 1 32 | . 58 19 . . 36 . . 19 44 . 10 3 56 . 26 . . . . 28 . . . . 77 . . 94 51 Level 2 28 | . . . . . 25 23 32 80 28 62 74 51 41 . . . . . . 17 . . . . 14 79 100 5 42 Level 3 6 | . . . . . . 24 67 . . 37 . 45 . . . . . . . . . . . . . 20 . . 6 Level 4 3 | . . . . . . 39 . . . . . . . . . . . . . . . . . . . . . . . Level 5 1 | . . . . . . 12 . . . . . . . . . . . . . . . . . . . . . . . High Security . | . . . . . . . . . . . . . . . . . . . . . . . . . . . . . . Max Security . | . . . . . . . . . . . . . . . . . . . . . . . . . . . . . . Squads Dispatched 84 | . 4 . . 1 11 . 2 . 17 . 2 . 5 . 10 . . . . 16 . . . . 2 . . 3 11 Investigation 49 | . 2 . . 1 7 . 2 . 9 . . . 4 . 6 . . . . 10 . . . . 1 . . 2 5 Extermination 12 | . . . . . . . . . 4 . 1 . . . 2 . . . . 2 . . . . 1 . . . 2 Reinforcement 22 | . 2 . . . 4 . . . 4 . . . 1 . 2 . . . . 4 . . . . . . . 1 4 Assault . | . . . . . . . . . . . . . . . . . . . . . . . . . . . . . . Garrison 1 | . . . . . . . . . . . 1 . . . . . . . . . . . . . . . . . . Intercept . | . . . . . . . . . . . . . . . . . . . . . . . . . . . . . . Searches Triggered 3 | . . . . . . . . . . . . . 1 . . . . . . . . . . . . . . . 2 Data Miner Redirects 4 | . . . . . . . . . . . . . . . . . . . . 1 . . . . . . . 2 1 Construction Impeded 2 | . . . . . . . . . . . . . . . . . . . . 2 . . . . . . . . . Haulers Reinforced 4 | . . . . . . . . . 1 . . . . . . . . . . 2 . . . . . . . . 1 Active Scanning Responses . | . . . . . . . . . . . . . . . . . . . . . . . . . . . . . . Cargo Convoy Interrupts 3 | . . . . . . . . . 1 . 1 . . . . . . . . . . . . . 1 . . . . Stealth | -11 -10 -10 -10 -9 -8 -8 -8 -8 -7 -7 -7 -7 -6 -6 -6 -6 -6 -6 -5 -5 -5 -5 -5 -4 -4 -4 -3 -2 -1 --------- Run | Yrd Mat Min Exi Min Mat Gar Mat Gar Fac Gar Fac Gar Fac Was Fac Low Low Dat Pro Fac Upp Upp Zhi Pro Fac Gar Res Res Acc Distress Signals 13 | . 1 . . . 1 . . . 3 . . . . . 1 . . . . 1 . . . . 4 . 1 . 1 Communications Jammed 22 | . . . . . . . . . . . . . . . . . . . . . . . . . . . . 13 9 Distress Signals 21 | . . . . . . . . . . . . . . . . . . . . . . . . . . . . 13 8 Times Spotted 418 | . 20 3 . . 55 28 7 3 34 20 9 11 19 . 18 7 . . 1 39 12 . . 9 40 15 3 30 35 Peak Tracking Total 15 | . 3 2 . . 6 8 5 3 4 8 12 5 6 . 4 4 . . 1 5 5 . . 3 15 4 3 12 11 Tactical Retreats 65 | . 1 . . . 7 9 . 1 2 . . . 3 . 3 2 . . . 4 3 . . 3 8 3 1 5 10 Traps | -11 -10 -10 -10 -9 -8 -8 -8 -8 -7 -7 -7 -7 -6 -6 -6 -6 -6 -6 -5 -5 -5 -5 -5 -4 -4 -4 -3 -2 -1 ------- Run | Yrd Mat Min Exi Min Mat Gar Mat Gar Fac Gar Fac Gar Fac Was Fac Low Low Dat Pro Fac Upp Upp Zhi Pro Fac Gar Res Res Acc Traps Triggered 27 | . 3 . . . 3 4 . . 3 . 1 5 1 . 2 . . . . 2 . . . . 1 1 1 . . Indirectly . | . . . . . . . . . . . . . . . . . . . . . . . . . . . . . . Trap Hack Attempts . | . . . . . . . . . . . . . . . . . . . . . . . . . . . . . . Triggered . | . . . . . . . . . . . . . . . . . . . . . . . . . . . . . . Disarmed . | . . . . . . . . . . . . . . . . . . . . . . . . . . . . . . Reprogrammed . | . . . . . . . . . . . . . . . . . . . . . . . . . . . . . . Reused 12 | . . . . . . 12 . . . . . . . . . . . . . . . . . . . . . . . Traps Extracted . | . . . . . . . . . . . . . . . . . . . . . . . . . . . . . . Installed 15 | . . . . . . 15 . . . . . . . . . . . . . . . . . . . . . . . Triggered 18 | . . . . . . 12 . . 2 . . . . . . 3 1 . . . . . . . . . . . . Most Traps Carried 8 | . . 2 2 2 2 8 . . . . . . . . . . . . . . . . . . . . . . . Objects Rigged 1 | . . . . . . . . . . . . . . . 1 . . . . . . . . . . . . . . Machines | -11 -10 -10 -10 -9 -8 -8 -8 -8 -7 -7 -7 -7 -6 -6 -6 -6 -6 -6 -5 -5 -5 -5 -5 -4 -4 -4 -3 -2 -1 ---------- Run | Yrd Mat Min Exi Min Mat Gar Mat Gar Fac Gar Fac Gar Fac Was Fac Low Low Dat Pro Fac Upp Upp Zhi Pro Fac Gar Res Res Acc Machines Disabled 56 | . 1 8 . 2 9 9 . 1 2 6 9 5 . . . . . . . 3 . . . . 1 . . . . Max in Single Turn 4 | . 1 1 . 1 3 2 . 1 1 1 4 1 . . . . . . . 1 . . . . 1 . . . . Garrison Access 7 | . . . . . . . . . . . . . 2 . 1 . . . . 2 . . . . 1 . . . 1 Garrison Relay 6 | . . . . . . 1 . . . 2 . 3 . . . . . . . . . . . . . . . . . Phase Generator 2 | . . . . . . 1 . . . 1 . . . . . . . . . . . . . . . . . . . Machines Repaired . | . . . . . . . . . . . . . . . . . . . . . . . . . . . . . . Machines Dismantled . | . . . . . . . . . . . . . . . . . . . . . . . . . . . . . . Machines Sabotaged . | . . . . . . . . . . . . . . . . . . . . . . . . . . . . . . Overloaded Fab Kills . | . . . . . . . . . . . . . . . . . . . . . . . . . . . . . . Hacking | -11 -10 -10 -10 -9 -8 -8 -8 -8 -7 -7 -7 -7 -6 -6 -6 -6 -6 -6 -5 -5 -5 -5 -5 -4 -4 -4 -3 -2 -1 --------- Run | Yrd Mat Min Exi Min Mat Gar Mat Gar Fac Gar Fac Gar Fac Was Fac Low Low Dat Pro Fac Upp Upp Zhi Pro Fac Gar Res Res Acc Machines Accessed 140 | . 6 . 2 1 11 2 5 1 18 1 8 3 12 . 17 . 1 4 . 21 . . 5 . 7 1 1 4 9 Terminals 77 | . 5 . . . 8 2 4 1 10 1 3 3 7 . 10 . . . . 10 . . . . 2 1 1 3 6 Fabricators 12 | . . . . . . . . . 2 . . . 1 . 2 . . . . 3 . . . . 1 . . 1 2 Repair Stations 13 | . 1 . . . . . . . 3 . 2 . . . 1 . . . . 5 . . . . 1 . . . . Recycling Units 6 | . . . . . . . . . 1 . 2 . 1 . 1 . . . . . . . . . 1 . . . . Scanalyzers 7 | . . . . . 2 . . . 1 . . . 1 . 2 . . . . 1 . . . . . . . . . Garrison Access 12 | . . . . . 1 . 1 . 1 . 1 . 2 . 1 . . . . 2 . . . . 2 . . . 1 Total Hacks 437 | . 20 . 5 1 37 5 13 3 51 3 23 6 34 . 60 . 2 26 . 58 . . 18 . 20 3 1 12 36 Successful 269 | . 13 . 5 1 21 2 7 2 23 2 15 3 19 . 40 . 2 26 . 39 . . 18 . 13 1 . 2 15 Failed 168 | . 7 . . . 16 3 6 1 28 1 8 3 15 . 20 . . . . 19 . . . . 7 2 1 10 21 Catastrophic 31 | . 1 . . . 4 . . . 6 1 2 1 . . . . . . . 3 . . . . 1 1 1 6 4 Database Lockouts . | . . . . . . . . . . . . . . . . . . . . . . . . . . . . . . Manual 194 | . 19 . 1 . 25 . 8 2 25 2 13 1 25 . 34 . . . . 19 . . . . 8 2 1 5 4 Terminals 258 | . 18 . . . 29 5 12 3 29 3 13 6 25 . 44 . . . . 27 . . . . 7 3 1 7 26 Fabricators 36 | . . . . . . . . . 6 . . . 3 . 5 . . . . 7 . . . . 1 . . 5 9 Repair Stations 36 | . 2 . . . . . . . 8 . 4 . . . 2 . . . . 15 . . . . 5 . . . . Recycling Units 17 | . . . . . . . . . 3 . 5 . 3 . 1 . . . . . . . . . 5 . . . . Scanalyzers 26 | . . . . . 7 . . . 4 . . . 1 . 7 . . . . 7 . . . . . . . . . Garrison Access 12 | . . . . . 1 . 1 . 1 . 1 . 2 . 1 . . . . 2 . . . . 2 . . . 1 Terminal Hacks 131 | . 8 . 5 1 7 2 3 2 2 2 5 3 7 . 17 . 2 26 . 11 . . 18 . . 1 . . 9 Record 31 | . . . 4 . . . . . . . . . . . 2 . 2 11 . 1 . . 6 . . . . . 5 Part Schematic 21 | . . . . . 1 . . . . . . . 2 . 4 . . 9 . 1 . . 4 . . . . . . Robot Schematic 3 | . . . . . . . . . . . . . . . . . . 3 . . . . . . . . . . . Robot Analysis 14 | . 4 . . . 2 . . . . . 2 . . . 1 . . . . . . . 4 . . . . . 1 Prototype ID Bank 11 | . . . . . 1 . . . . . . . 1 . 2 . . 3 . . . . 4 . . . . . . Open Door 3 | . . . . 1 . . . . . . . . 1 . . . . . . . . . . . . . . . 1 Branch Access Points 2 | . . . . . . . . . . . . . . . 1 . . . . 1 . . . . . . . . . Emergency Access Points 4 | . . . . . . 1 . 1 . . . 1 . . . . . . . . . . . . . 1 . . . Terminal Index 7 | . 1 . . . 1 . 1 . 1 . . . 1 . 1 . . . . 1 . . . . . . . . . Fabricator Index 1 | . . . . . . . . . . . . . . . 1 . . . . . . . . . . . . . . Scanalyzer Index 1 | . . . . . . . . . . . . . . . . . . . . 1 . . . . . . . . . Unreport Threat 9 | . . . . . 1 . 2 . . . 3 . . . 1 . . . . 2 . . . . . . . . . Locate Traps 7 | . 2 . . . 1 . . . 1 . . . 2 . 1 . . . . . . . . . . . . . . Patrol Status 1 | . . . . . . . . . . . . . . . . . . . . 1 . . . . . . . . . Recall Investigation 3 | . . . . . . . . . . . . . . . 1 . . . . 2 . . . . . . . . . Recall Reinforcements 1 | . . . . . . . . . . . . . . . 1 . . . . . . . . . . . . . . Registered Components 1 | . . . . . . . . . . . . . . . . . . . . 1 . . . . . . . . . Zone Layout 4 | . 1 . . . . . . . . . . . . . 1 . . . . . . . . . . . . . 2 Garrison Registry 4 | . . . . . . 1 . 1 . 1 . 1 . . . . . . . . . . . . . . . . . Patrol Navigation 2 | . . . . . . . . . . 1 . 1 . . . . . . . . . . . . . . . . . Derelict Proto ID Bank 1 | . . . 1 . . . . . . . . . . . . . . . . . . . . . . . . . . Fabricator Hacks 23 | . . . . . . . . . 4 . . . 2 . 4 . . . . 6 . . . . 1 . . 1 5 Network Status 1 | . . . . . . . . . . . . . . . . . . . . . . . . . . . . . 1 Load Schematic 12 | . . . . . . . . . 2 . . . 1 . 2 . . . . 3 . . . . 1 . . 1 2 Build 10 | . . . . . . . . . 2 . . . 1 . 2 . . . . 3 . . . . . . . . 2 Repair Station Hacks 28 | . 2 . . . . . . . 5 . 3 . . . 2 . . . . 12 . . . . 4 . . . . Scan Component 15 | . 1 . . . . . . . 3 . 2 . . . 1 . . . . 6 . . . . 2 . . . . Repair 13 | . 1 . . . . . . . 2 . 1 . . . 1 . . . . 6 . . . . 2 . . . . Recycling Unit Hacks 3 | . . . . . . . . . 1 . . . 1 . 1 . . . . . . . . . . . . . . Retrieve Components 3 | . . . . . . . . . 1 . . . 1 . 1 . . . . . . . . . . . . . . Scanalyzer 14 | . . . . . 4 . . . 2 . . . . . 5 . . . . 3 . . . . . . . . . Insert Component 8 | . . . . . 3 . . . 1 . . . . . 2 . . . . 2 . . . . . . . . . Analyze 6 | . . . . . 1 . . . 1 . . . . . 3 . . . . 1 . . . . . . . . . Garrison Access Hacks 12 | . . . . . 1 . 1 . 1 . 1 . 2 . 1 . . . . 2 . . . . 2 . . . 1 Unlock Access 5 | . . . . . 1 . 1 . 1 . 1 . . . . . . . . . . . . . 1 . . . . Seal Access 7 | . . . . . . . . . . . . . 2 . 1 . . . . 2 . . . . 1 . . . 1 Unauthorized Hacks 58 | . 3 . . . 9 . 3 . 8 . 6 . 7 . 10 . . . . 5 . . . . 6 . . 1 . Terminals 42 | . 3 . . . 8 . 3 . 5 . 3 . 4 . 9 . . . . 3 . . . . 3 . . 1 . Assimilate 10 | . . . . . 2 . 1 . 2 . . . 1 . 2 . . . . . . . . . 1 . . 1 . Botnet 28 | . 3 . . . 5 . 2 . 2 . 3 . 3 . 5 . . . . 3 . . . . 2 . . . . Detonate 1 | . . . . . . . . . . . . . . . 1 . . . . . . . . . . . . . . Operators 3 | . . . . . 1 . . . 1 . . . . . 1 . . . . . . . . . . . . . . Fabricators . | . . . . . . . . . . . . . . . . . . . . . . . . . . . . . . Repair Stations 2 | . . . . . . . . . . . . . . . . . . . . 1 . . . . 1 . . . . Patch 2 | . . . . . . . . . . . . . . . . . . . . 1 . . . . 1 . . . . Recycling Units 9 | . . . . . . . . . 2 . 3 . 2 . . . . . . . . . . . 2 . . . . Reject 4 | . . . . . . . . . 1 . 1 . 1 . . . . . . . . . . . 1 . . . . Mask 5 | . . . . . . . . . 1 . 2 . 1 . . . . . . . . . . . 1 . . . . Scanalyzers 5 | . . . . . 1 . . . 1 . . . 1 . 1 . . . . 1 . . . . . . . . . Extract 5 | . . . . . 1 . . . 1 . . . 1 . 1 . . . . 1 . . . . . . . . . Garrison Access . | . . . . . . . . . . . . . . . . . . . . . . . . . . . . . . Data Cores Recovered 1 | . . . . . . . . . . . . . . . 1 . . . . . . . . . . . . . . Used . | . . . . . . . . . . . . . . . . . . . . . . . . . . . . . . Hacking Detections 101 | . 5 . . . 11 1 4 1 15 . 6 3 8 . 13 . . . . 17 . . . . 3 1 1 4 8 Full Trace Events 41 | . 3 . . . 6 1 2 . 7 . . . 3 . 5 . . . . 7 . . . . . . . 2 5 Feedback Events 7 | . 1 . . . 2 . . . . . . . . . 2 . . . . 1 . . . . . . . . 1 Corruption 3 | . 1 . . . 1 . . . . . . . . . 1 . . . . . . . . . . . . . . Hackware Fried 4 | . . . . . 1 . . . . . . . . . 1 . . . . 1 . . . . . . . . 1 Feedback Blocked . | . . . . . . . . . . . . . . . . . . . . . . . . . . . . . . Robot Schematics Acquired 3 | . . . . . . . . . . . . . . . . . . 3 . . . . . . . . . . . Robots Built . | . . . . . . . . . . . . . . . . . . . . . . . . . . . . . . Authchips . | . . . . . . . . . . . . . . . . . . . . . . . . . . . . . . Time . | . . . . . . . . . . . . . . . . . . . . . . . . . . . . . . Total Robot Build Rating . | . . . . . . . . . . . . . . . . . . . . . . . . . . . . . . Part Schematics Acquired 65 | . . . . . 10 . . . 4 . . . 4 . 8 . . 9 . 26 . . 4 . . . . . . Parts Built 10 | . . . . . . . . . 2 . . . 1 . 1 . . . . 4 . . . . . . . . 2 Authchips . | . . . . . . . . . . . . . . . . . . . . . . . . . . . . . . Time 562 | . . . . . . . . . 134 . . . 31 . 179 . . . . 136 . . . . . . . . 82 Total Part Build Rating 47 | . . . . . . . . . 8 . . . 5 . 5 . . . . 18 . . . . . . . . 11 Parts Repaired 13 | . 1 . . . . . . . 2 . 1 . . . 1 . . . . 6 . . . . 2 . . . . Time 589 | . 26 . . . . . . . 79 . 44 . . . 88 . . . . 246 . . . . 106 . . . . Parts Recycled . | . . . . . . . . . . . . . . . . . . . . . . . . . . . . . . Recycled Matter . | . . . . . . . . . . . . . . . . . . . . . . . . . . . . . . Retrieved Matter . | . . . . . . . . . . . . . . . . . . . . . . . . . . . . . . Retrieved Components 19 | . . . . . . . . . 9 . . . 2 . 8 . . . . . . . . . . . . . . Parts Scanalyzed 7 | . . . . . 2 . . . 1 . . . . . 2 . . . . 2 . . . . . . . . . Part Schematics Acquired 5 | . . . . . 1 . . . 1 . . . . . 2 . . . . 1 . . . . . . . . . Parts Damaged 2 | . . . . . . . . . . . . . . . 1 . . . . 1 . . . . . . . . . Bothacking | -11 -10 -10 -10 -9 -8 -8 -8 -8 -7 -7 -7 -7 -6 -6 -6 -6 -6 -6 -5 -5 -5 -5 -5 -4 -4 -4 -3 -2 -1 ------------ Run | Yrd Mat Min Exi Min Mat Gar Mat Gar Fac Gar Fac Gar Fac Was Fac Low Low Dat Pro Fac Upp Upp Zhi Pro Fac Gar Res Res Acc Used RIF Installer 6 | . . . . . . 1 . 1 . 1 . 1 . . . . . . . . . . . . . 2 . . . Hotswap 1 | . . . . . . . . . . 1 . . . . . . . . . . . . . . . . . . . Signal Jammer 1 | . . . . . . . . . . . . . . . . . . . . . . . . . . 1 . . . Zone Cloak 1 | . . . . . . . . 1 . . . . . . . . . . . . . . . . . . . . . Patrol Navigation 1 | . . . . . . . . . . . . . . . . . . . . . . . . . . 1 . . . Autooverride 1 | . . . . . . . . . . . . 1 . . . . . . . . . . . . . . . . . Robots Hacked 13 | . 1 . . . . . . . 1 4 2 1 1 . . . . . . . . . 3 . . . . . . Non-combat 5 | . 1 . . . . . . . 1 . 2 . 1 . . . . . . . . . . . . . . . . Combat 8 | . . . . . . . . . . 4 . 1 . . . . . . . . . . 3 . . . . . . Robot Hacks Applied 16 | . 1 . . . . . . . 1 4 3 1 2 . . . . . . . . . 4 . . . . . . parse_system 6 | . 1 . . . . . . . 1 . . . . . . . . . . . . . 4 . . . . . . find_fabricator 1 | . . . . . . . . . . . 1 . . . . . . . . . . . . . . . . . . drop_inventory 2 | . . . . . . . . . . . 2 . . . . . . . . . . . . . . . . . . purge_threat 2 | . . . . . . . . . . . . . 2 . . . . . . . . . . . . . . . . disable_weapons 1 | . . . . . . . . . . 1 . . . . . . . . . . . . . . . . . . . formatsys_high 4 | . . . . . . . . . . 3 . 1 . . . . . . . . . . . . . . . . . Relay Couplers Released 27 | . . . . . . 6 . . . 9 . 12 . . . . . . . . . . . . . . . . . Machine Destruction 24 | . . . . . . 3 . . . 9 . 12 . . . . . . . . . . . . . . . . . Programmers 3 | . . . . . . 3 . . . . . . . . . . . . . . . . . . . . . . . Attached 7 | . . . . . . . . . . 4 . 3 . . . . . . . . . . . . . . . . . Fabnet Peak Effective % . | . . . . . . . . . . . . . . . . . . . . . . . . . . . . . . Robots Rewired 4 | . . . . . . . . . . . . 3 . . . . . . . 1 . . . . . . . . . Allies Hacked 1 | . . . . . . . . . 1 . . . . . . . . . . . . . . . . . . . . Hacks Repelled . | . . . . . . . . . . . . . . . . . . . . . . . . . . . . . . Allies | -11 -10 -10 -10 -9 -8 -8 -8 -8 -7 -7 -7 -7 -6 -6 -6 -6 -6 -6 -5 -5 -5 -5 -5 -4 -4 -4 -3 -2 -1 -------- Run | Yrd Mat Min Exi Min Mat Gar Mat Gar Fac Gar Fac Gar Fac Was Fac Low Low Dat Pro Fac Upp Upp Zhi Pro Fac Gar Res Res Acc Total Allies 16 | . . 1 . . 1 . 1 . 2 3 . 4 1 . . . . . . 1 . . . . 1 . . 1 . Largest Group 4 | . . 1 . . 1 . 1 1 1 3 . 3 4 . . . . . . 1 . . . . 1 . . 1 . Highest-Rated Group 77 | . . 31 . . 10 . 10 9 26 77 . 60 70 . . . . . . 41 . . . . 26 . . 26 . Highest-Rated Ally 41 | . . 31 . . 10 . 10 9 26 32 . 21 20 . . . . . . 41 . . . . 26 . . 26 . Total Orders 21 | . . . . . . . . 2 5 2 . . 9 . . . . . . 3 . . . . . . . . . STAY 7 | . . . . . . . . 1 3 1 . . 2 . . . . . . . . . . . . . . . . ROAM 5 | . . . . . . . . . . . . . 4 . . . . . . 1 . . . . . . . . . FOLLOW 5 | . . . . . . . . 1 2 1 . . 1 . . . . . . . . . . . . . . . . GUARD 1 | . . . . . . . . . . . . . 1 . . . . . . . . . . . . . . . . EXPLORE 3 | . . . . . . . . . . . . . 1 . . . . . . 2 . . . . . . . . . Ally Attacks 52 | . . 8 . . . . . . . 21 . 14 7 . . . . . . 2 . . . . . . . . . Total Damage 1063 | . . 126 . . . . . . . 421 . 368 79 . . . . . . 69 . . . . . . . . . Kills 11 | . . 3 . . . . . . . 5 . 2 1 . . . . . . . . . . . . . . . . Allies Corrupted . | . . . . . . . . . . . . . . . . . . . . . . . . . . . . . . Allies Melted 1 | . . . . . . . . . . . . . 1 . . . . . . . . . . . . . . . . Intel | -11 -10 -10 -10 -9 -8 -8 -8 -8 -7 -7 -7 -7 -6 -6 -6 -6 -6 -6 -5 -5 -5 -5 -5 -4 -4 -4 -3 -2 -1 ------- Run | Yrd Mat Min Exi Min Mat Gar Mat Gar Fac Gar Fac Gar Fac Was Fac Low Low Dat Pro Fac Upp Upp Zhi Pro Fac Gar Res Res Acc Robot Analysis Total 14 | . 4 . . . 2 . . . . . 2 . . . 1 . . . . . . . 4 . . . . . 1 Derelict Logs Recovered 5 | . . . . . . . . . . . . . . . . 1 . . 1 . 2 . . 1 . . . . . Drone Launches 5 | . . . . . . . . . . . . . 2 . . . . . . 3 . . . . . . . . . Drone Recoveries 1 | . . . . . . . . . . . . . . . . . . . . 1 . . . . . . . . . Exploration | -11 -10 -10 -10 -9 -8 -8 -8 -8 -7 -7 -7 -7 -6 -6 -6 -6 -6 -6 -5 -5 -5 -5 -5 -4 -4 -4 -3 -2 -1 ------------- Run | Yrd Mat Min Exi Min Mat Gar Mat Gar Fac Gar Fac Gar Fac Was Fac Low Low Dat Pro Fac Upp Upp Zhi Pro Fac Gar Res Res Acc Turns Passed 20693 | 66 884 353 369 270 3609 1798 188 391 3582 438 604 979 704 57 1020 83 75 17 160 1831 349 67 71 168 736 358 170 480 816 Spaces Moved 23047 | 38 402 178 229 144 1394 1321 163 174 3242 522 1091 848 1362 209 1654 332 258 81 274 2765 857 226 176 453 1106 406 388 906 1848 Core 5 | 5 . . . . . . . . . . . . . . . . . . . . . . . . . . . . . Treads 2366 | 33 402 178 229 144 1380 . . . . . . . . . . . . . . . . . . . . . . . . Legs . | . . . . . . . . . . . . . . . . . . . . . . . . . . . . . . Wheels 2826 | . . . . . 14 1321 163 174 1154 . . . . . . . . . . . . . . . . . . . . Hover . | . . . . . . . . . . . . . . . . . . . . . . . . . . . . . . Flight 17850 | . . . . . . . . . 2088 522 1091 848 1362 209 1654 332 258 81 274 2765 857 226 176 453 1106 406 388 906 1848 Fastest Speed 6 | 50 160 160 160 160 100 100 100 100 23 23 23 25 21 21 6 15 21 21 18 15 27 27 22 12 25 29 28 28 13 Average Speed 49 | 148 160 160 160 160 164 100 100 100 61 30 23 54 21 21 20 22 21 21 20 23 27 27 24 22 27 29 28 28 15 Slowest Speed 630 | 160 160 160 160 160 232 100 100 100 630 91 25 90 22 21 25 25 21 21 21 99 104 27 27 24 102 32 29 33 95 Overloaded Moves 208 | . . . . . . . . . . . . . . . 7 75 . . 5 95 . . . 26 . . . . . Propulsion Burnouts . | . . . . . . . . . . . . . . . . . . . . . . . . . . . . . . Robots Hopped 61 | . . . . . . . . . . . 1 . 5 . 16 . . . . 10 . 1 . 1 13 . 4 6 4 Cave-ins Triggered . | . . . . . . . . . . . . . . . . . . . . . . . . . . . . . . Exploration Rate (%) 47 | 4 77 42 60 27 91 69 19 25 71 37 32 63 39 83 39 46 52 70 41 60 76 40 62 61 26 31 13 31 49 Regions Visited 29 Branch Regions 11 Pre-discovered Areas 6 | . . . 1 . . . . . . . . . . . . . . 1 . . 1 . 3 . . . . . . Known Exits Taken 7 | . . . . . 1 . 1 . 1 . 1 . . . 1 . . . . 1 . . . . 1 . . . . Unknown Exits Taken 15 | 1 1 1 1 1 . . . . . . . . . . . 1 1 1 1 . 1 1 1 1 . . 1 1 . Scrap Searched 9 | . . . . 1 . . . . . . . . . . . 1 2 . . . 2 2 . 1 . . . . . Spaces Dug 445 | . . . . . 32 5 6 1 75 1 15 21 41 . 42 1 . . . 61 . . . . 23 . 6 36 79 Terrain Destroyed 869 | . 6 9 . 20 54 76 6 1 172 136 35 52 41 . 50 1 . . . 63 . . . 1 24 . 6 36 80 Melee 397 | . . . . . 31 5 4 1 59 1 15 21 36 . 38 1 . . . 60 . . . . 23 . 4 35 63 Projectile 59 | . . . . . 4 . 2 . 13 1 . . 5 . 12 . . . . 1 . . . . 1 . 2 1 17 AOE 413 | . 6 9 . 20 19 71 . . 100 134 20 31 . . . . . . . 2 . . . 1 . . . . . Terrain Rammed . | . . . . . . . . . . . . . . . . . . . . . . . . . . . . . . Walls Destroyed . | . . . . . . . . . . . . . . . . . . . . . . . . . . . . . . Machines Disabled . | . . . . . . . . . . . . . . . . . . . . . . . . . . . . . . Actions | -11 -10 -10 -10 -9 -8 -8 -8 -8 -7 -7 -7 -7 -6 -6 -6 -6 -6 -6 -5 -5 -5 -5 -5 -4 -4 -4 -3 -2 -1 --------- Run | Yrd Mat Min Exi Min Mat Gar Mat Gar Fac Gar Fac Gar Fac Was Fac Low Low Dat Pro Fac Upp Upp Zhi Pro Fac Gar Res Res Acc Total 30067 | 45 553 218 234 176 2374 1687 178 371 4547 758 1390 1273 1654 214 2146 335 277 80 360 3688 953 231 197 493 1408 552 422 1030 2223 Wait 4836 | . 61 9 . 18 681 178 . 180 1034 183 210 246 194 . 385 . 16 . 78 715 59 . . 23 203 56 20 61 226 Move 22893 | 37 401 177 228 143 1393 1320 162 172 3241 520 1088 846 1352 208 1621 331 257 80 273 2744 856 223 175 450 1079 403 381 894 1838 Hop 58 | . . . . . . . . . . . 1 . 5 . 16 . . . . 10 . 1 . 1 13 . 2 5 4 Pick Up 140 | 2 12 4 1 1 18 27 5 1 16 . 6 4 2 . 2 1 . . 1 10 6 2 . . 6 . 3 4 6 Fast Attach 182 | 6 11 . . 2 27 . . . 17 5 12 3 8 . 7 1 3 . . 28 2 1 5 . 7 4 5 7 21 Attach 62 | . 2 . . 2 8 2 . . 6 3 . 1 3 . . . . . 1 6 6 . . . 8 4 2 3 5 Detach 31 | . 1 . 2 1 . . . . 1 2 2 1 1 . . . . . . 5 3 . . . 4 3 . 3 2 Swap 104 | . 3 1 . . 14 . 1 2 29 6 3 13 8 1 4 . . . . 2 1 1 5 . 5 3 . . 2 Drop 237 | . 9 4 3 1 32 29 3 . 31 4 18 8 13 1 6 . 1 . . 26 4 3 5 . 12 . . 6 18 Fire 519 | . 46 21 . 2 106 48 2 12 63 26 6 13 10 . 16 . . . . 19 12 . 7 8 13 68 2 2 17 Melee 802 | . 3 . . . 90 44 5 4 108 7 26 39 58 4 71 2 . . 7 116 4 . . 11 58 10 7 45 83 Ram 1 | . . . . . . . . . 1 . . . . . . . . . . . . . . . . . . . . Kick . | . . . . . . . . . . . . . . . . . . . . . . . . . . . . . . Crush 17 | . 4 2 . 6 5 . . . . . . . . . . . . . . . . . . . . . . . . Escape Stasis 152 | . . . . . . 24 . . . . 18 90 . . 18 . . . . . . . . . . 1 . . 1 Rewire 18 | . . . . . . . . . . 2 . 9 . . . . . . . 7 . . . . . . . . . Trap 15 | . . . . . . 15 . . . . . . . . . . . . . . . . . . . . . . . Miscellaneous . | . . . . . . . . . . . . . . . . . . . . . . . . . . . . . . Route ------- -11/Scrapyard -10/Materials (discovered 3 exits: [*Mat] / [*Min x2]) -10/Mines -10/Exiles -9/Mines -8/Materials (discovered 5 exits: *Fac x3 / [*Sto] / Gar) -8/Garrison (discovered 4 exits: *Mat x4) -8/Materials (discovered 3 exits: [*Sto x2] / Gar) -8/Garrison (discovered 4 exits: *Fac x3 / [Mat]) -7/Factory (discovered 3 exits: *Fac x2 / Gar) -7/Garrison (discovered 3 exits: *Fac x3) -7/Factory (discovered 2 exits: [*Low] / Gar) -7/Garrison (discovered 3 exits: *Fac x3) -6/Factory (discovered 4 exits: *Fac / *Low x2 / *Ext) -6/Waste -6/Factory (discovered 4 exits: *Low x2 / Ext x2) -6/Lower Caves -6/Lower Caves -6/Data Miner -5/Proximity Caves -5/Factory (discovered 5 exits: *Fac x3 / *Upp x2) -5/Upper Caves -5/Upper Caves (discovered 2 exits: *Fac / *Zhi) -5/Zhirov -4/Proximity Caves -4/Factory (discovered 2 exits: *Res / Gar) -4/Garrison -3/Research (discovered 2 exits: *Res / Qua) -2/Research -1/Access To Epsilon Eridani History --------- Turn | Location | Event 2 | -11/Scrapyard | Met Revision 17 46 | -11/Scrapyard | Discovered new exit (range 14) 67 | -11/Scrapyard | Entered Materials 67 | -10/Materials | Discovered new exit (range 15) 305 | -10/Materials | Build established: Mutant 386 | -10/Materials | Discovered new exit (range 9) 628 | -10/Materials | Discovered new exit (range 16) 924 | -10/Materials | Repaired Beam Cannon 951 | -10/Materials | Entered Mines 953 | -10/Mines | Met a Derelict bent on vengeance 954 | -10/Mines | Received a Mining Laser from a helpful Derelict 1063 | -10/Mines | Assembled infested the area 1064 | -10/Mines | Found a hidden stash of uninstalled traps 1296 | -10/Mines | Deemed a non-threat by the Exiles lab entrance 1298 | -10/Mines | Discovered new exit (range 5) 1304 | -10/Mines | Entered Exiles 1346 | -10/Exiles | Met 8R-AWN 1372 | -10/Exiles | Met EX-HEX 1452 | -10/Exiles | Met EX-BIN 1471 | -10/Exiles | Aligned with FarCom system 1473 | -10/Exiles | Given EX-Vault access code 1510 | -10/Exiles | Opened EX-Vault 1518 | -10/Exiles | Found Gui. Plasma Cannon 1553 | -10/Exiles | Warned to stay clear of 0b10 Research branches 1601 | -10/Exiles | Met EX-DEC 1607 | -10/Exiles | Learned location of Zion (-7) 1657 | -10/Exiles | Discovered new exit (range 10) 1673 | -10/Exiles | Left Exiles lab with Gui. Plasma Cannon 1673 | -10/Exiles | Entered Mines 1704 | -9/Mines | Discovered new exit (range 7) 1879 | -9/Mines | Met a Derelict shopkeep closing up shop 1943 | -9/Mines | Entered Materials 1943 | -8/Materials | Evolved 4 slots: Propulsion x2, Utility x2 1968 | -8/Materials | Discovered new exit (range 6) 2338 | -8/Materials | Build established: Scavenger-Mutant 2395 | -8/Materials | Discovered new exit (range 5) 2725 | -8/Materials | Met 7R-MNS 3481 | -8/Materials | Core integrity fell below 50% 3573 | -8/Materials | Build established: Mutant 3794 | -8/Materials | Discovered new exit (range 10) 4465 | -8/Materials | Discovered new exit (range 3) 4765 | -8/Materials | Lost 3 parts (1p1n1u) 4903 | -8/Materials | Hacking Suite fried by hacking feedback 5551 | -8/Materials | Identified exit to Garrison 5552 | -8/Materials | Entered Garrison 5744 | -8/Garrison | Triggered checkpoint 5763 | -8/Garrison | Garrison Relay disabled 6146 | -8/Garrison | Triggered checkpoint 6224 | -8/Garrison | Triggered checkpoint 6236 | -8/Garrison | Triggered checkpoint 6290 | -8/Garrison | Discovered new exit (range 11) 6355 | -8/Garrison | Triggered checkpoint 6645 | -8/Garrison | Discovered new exit (range 5) 6880 | -8/Garrison | Core integrity fell below 20% 6912 | -8/Garrison | Discovered new exit (range 12) 6912 | -8/Garrison | Discovered new exit (range 42) 6912 | -8/Garrison | Discovered new exit (range 68) 6912 | -8/Garrison | Discovered new exit (range 19) 7013 | -8/Garrison | Installed Relay Interface Framework 7134 | -8/Garrison | Phase Generator disabled 7350 | -8/Garrison | Entered Materials 7374 | -8/Materials | Discovered new exit (range 16) 7500 | -8/Materials | Discovered new exit (range 16) 7537 | -8/Materials | Identified exit to Garrison 7538 | -8/Materials | Entered Garrison 7538 | -8/Garrison | Accompanied by 1 ally 7542 | -8/Garrison | Triggered checkpoint 7599 | -8/Garrison | Expanded RIF knowledge: Zone Cloak 7613 | -8/Garrison | Discovered new exit (range 55) 7613 | -8/Garrison | Discovered new exit (range 57) 7613 | -8/Garrison | Discovered new exit (range 35) 7613 | -8/Garrison | Discovered new exit (range 25) 7624 | -8/Garrison | Triggered checkpoint 7929 | -8/Garrison | Entered Factory 7929 | -7/Factory | Evolved 2 slots: Propulsion x1, Utility x1 8629 | -7/Factory | Build established: Hacker-Mutant 8723 | -7/Factory | Discovered new exit (range 4) 8874 | -7/Factory | Cargo convoy interrupted 8909 | -7/Factory | Repaired Arm. Huge Wheel 9984 | -7/Factory | Discovered new exit (range 5) 10125 | -7/Factory | P-60 Hacker assimilated allied Technician 4a 10251 | -7/Factory | Repaired Cld. VTOL Module 10549 | -7/Factory | Build established: Hacker-Sprinter 10749 | -7/Factory | Gui. Plasma Cannon suddenly broke down 11151 | -7/Factory | Fabricated Cld. VTOL Module? 11152 | -7/Factory | Fabricated Cld. VTOL Module? 11511 | -7/Factory | Identified exit to Garrison 11511 | -7/Factory | Entered Garrison 11637 | -7/Garrison | Discovered new exit (range 52) 11637 | -7/Garrison | Discovered new exit (range 75) 11637 | -7/Garrison | Discovered new exit (range 43) 11644 | -7/Garrison | Garrison Relay disabled 11670 | -7/Garrison | Triggered checkpoint 11687 | -7/Garrison | Triggered checkpoint 11779 | -7/Garrison | Triggered checkpoint 11822 | -7/Garrison | Triggered checkpoint 11825 | -7/Garrison | Triggered checkpoint 11832 | -7/Garrison | Spotted B-75 Beast 11832 | -7/Garrison | Spotted B-75 Beast 11857 | -7/Garrison | Lost 3 allies 11876 | -7/Garrison | Expanded RIF knowledge: Hotswap 11877 | -7/Garrison | Destroyed 10 combat bots 11904 | -7/Garrison | Garrison Relay disabled 11948 | -7/Garrison | Phase Generator disabled 11949 | -7/Garrison | Entered Factory 12167 | -7/Factory | Repaired Broken Impact Mace? 12236 | -7/Factory | Found Prototype Launcher 12236 | -7/Factory | Identified Rocket Array 12442 | -7/Factory | Discovered new exit (range 6) 12480 | -7/Factory | Identified exit to Garrison 12494 | -7/Factory | Cargo convoy interrupted 12496 | -7/Factory | Garrison activated, responded to threat 12499 | -7/Factory | Core integrity fell below 50% 12520 | -7/Factory | Destroyed 11 combat bots 12535 | -7/Factory | Found Prototype Device 12535 | -7/Factory | Identified Exp. ECM Suite 12553 | -7/Factory | Entered Garrison 12569 | -7/Garrison | Triggered checkpoint 12637 | -7/Garrison | Garrison Relay disabled 12777 | -7/Garrison | Triggered checkpoint 12840 | -7/Garrison | Triggered checkpoint 12939 | -7/Garrison | Triggered checkpoint 13000 | -7/Garrison | Discovered new exit (range 8) 13086 | -7/Garrison | Garrison Relay disabled 13234 | -7/Garrison | Discovered new exit (range 11) 13251 | -7/Garrison | Triggered checkpoint 13263 | -7/Garrison | Build established: Hacker-Mutant 13381 | -7/Garrison | Triggered checkpoint 13406 | -7/Garrison | Discovered new exit (range 77) 13406 | -7/Garrison | Discovered new exit (range 12) 13406 | -7/Garrison | Discovered new exit (range 53) 13423 | -7/Garrison | Expanded RIF knowledge: Autooverride 13479 | -7/Garrison | Garrison Relay disabled 13532 | -7/Garrison | Entered Factory 13532 | -6/Factory | Accompanied by 3 allies 13532 | -6/Factory | Evolved 2 slots: Propulsion x1, Utility x1 13536 | -6/Factory | Discovered new exit (range 7) 13772 | -6/Factory | Build established: Hacker-Sprinter 13934 | -6/Factory | Fabricated Imp. Hacking Suite (x1) 13940 | -6/Factory | Discovered new exit (range 10) 14037 | -6/Factory | Discovered new exit (range 4) 14171 | -6/Factory | Discovered new exit (range 7) 14232 | -6/Factory | Search patrols dispatched 14236 | -6/Factory | Sucked down chute 14236 | -6/Factory | Entered Waste 14236 | -6/Waste | The area was eerily silent 14278 | -6/Waste | Discovered new exit (range 12) 14293 | -6/Waste | Entered Factory 14322 | -6/Factory | Spotted B-75 Beast 14481 | -6/Factory | Repaired Broken Cld. VTOL Module 14784 | -6/Factory | Identified exit to Lower Caves 14784 | -6/Factory | Identified exit to Extension 15170 | -6/Factory | Fabricated Imp. Hacking Suite? 15298 | -6/Factory | System Shield fried by hacking feedback 15313 | -6/Factory | Entered Lower Caves 15343 | -6/Lower Caves | Learned Factory emergency access door positions 15346 | -6/Lower Caves | Spotted B-75 Beast 15373 | -6/Lower Caves | Lost 4 parts (1n3u) 15394 | -6/Lower Caves | Discovered new exit (range 9) 15396 | -6/Lower Caves | Entered another Lower Caves area 15466 | -6/Lower Caves | Discovered new exit (range 6) 15471 | -6/Lower Caves | Entered Data Miner 15471 | -6/Data Miner | Discovered new exit (range 6) 15475 | -6/Data Miner | Met Data Miner 15480 | -6/Data Miner | Learned location of Section 7 (-2) 15480 | -6/Data Miner | Acquired the access code to Warlord's prototype stash 15484 | -6/Data Miner | Received God Mode back door access code from Data Miner 15488 | -6/Data Miner | Entered Proximity Caves 15497 | -5/Proximity Caves | Learned 8 Factory zone layouts 15638 | -5/Proximity Caves | Discovered new exit (range 8) 15648 | -5/Proximity Caves | Entered Factory 15648 | -5/Factory | Evolved 2 slots: Propulsion x1, Utility x1 15768 | -5/Factory | Repaired Cld. Cesium-ion Thruster? 15785 | -5/Factory | Imp. Hacking Suite fried by hacking feedback 15829 | -5/Factory | Repaired Imp. Medium Armor Plating? 16226 | -5/Factory | Repaired Hvy. Pick 16286 | -5/Factory | Repaired Imp. Medium Armor Plating 16335 | -5/Factory | Identified exit to Upper Caves 16361 | -5/Factory | Discovered new exit (range 4) 16401 | -5/Factory | Discovered new exit (range 89) 16406 | -5/Factory | Fabricated Greatsword? 16525 | -5/Factory | Repaired Field Propulsion Drive 16942 | -5/Factory | Incoming investigation squad redirected 16967 | -5/Factory | Fabricated Imp. Hacking Suite (x1) 17106 | -5/Factory | Discovered new exit (range 14) 17177 | -5/Factory | Fabricated Imp. Hacking Suite? 17267 | -5/Factory | Build established: Wizard-Sprinter 17414 | -5/Factory | Repaired Hvy. Shock Bomb Launcher 17479 | -5/Factory | Entered Upper Caves 17481 | -5/Upper Caves | Attracted the attention of an 0b10 checkpoint 17760 | -5/Upper Caves | Learned Factory terminal intel 17825 | -5/Upper Caves | Discovered new exit (range 8) 17828 | -5/Upper Caves | Entered another Upper Caves area 17833 | -5/Upper Caves | Discovered new exit (range 15) 17837 | -5/Upper Caves | Encountered a Warlord checkpoint 17888 | -5/Upper Caves | Discovered new exit (range 7) 17895 | -5/Upper Caves | Entered Zhirov 17895 | -5/Zhirov | Discovered new exit (range 3) 17900 | -5/Zhirov | Met Zhirov 17906 | -5/Zhirov | Learned location of Quarantine (-3) 17906 | -5/Zhirov | Learned location of Testing (-2) 17906 | -5/Zhirov | Learned location of Command (-1) 17911 | -5/Zhirov | Zhirov requested help retrieving the SGEMP Prototype 17915 | -5/Zhirov | Found Alien Artifact 17915 | -5/Zhirov | Identified Integrated Reactor 17915 | -5/Zhirov | Installed Integrated Reactor, increased core energy generation (+10) 17966 | -5/Zhirov | Entered Proximity Caves 18023 | -4/Proximity Caves | Build established: Hacker-Sprinter 18063 | -4/Proximity Caves | Spotter reported a threat 18111 | -4/Proximity Caves | Learned 8 Research zone layouts 18131 | -4/Proximity Caves | Discovered new exit (range 15) 18134 | -4/Proximity Caves | Entered Factory 18134 | -4/Factory | Evolved 2 slots: Power x1, Utility x1 18135 | -4/Factory | Loaded intel: 26 terminal locations 18161 | -4/Factory | Discovered new exit (range 9) 18615 | -4/Factory | Repaired Imp. Medium Armor Plating? 18694 | -4/Factory | Repaired Adv. Reaction Control System 18788 | -4/Factory | Cargo convoy interrupted 18870 | -4/Factory | Identified exit to Garrison 18870 | -4/Factory | Entered Garrison 18891 | -4/Garrison | Expanded RIF knowledge: Signal Jamming 18923 | -4/Garrison | Expanded RIF knowledge: Patrol Navigation 19107 | -4/Garrison | System corruption reached 10% 19137 | -4/Garrison | Lost 6 parts (1p1n4u) 19205 | -4/Garrison | Spotted B-86 Titan 19208 | -4/Garrison | Triggered checkpoint 19224 | -4/Garrison | Discovered new exit (range 3) 19228 | -4/Garrison | Entered Research 19228 | -3/Research | Evolved 2 slots: Propulsion x1, Utility x1 19229 | -3/Research | Identified exit to Quarantine 19364 | -3/Research | Discovered new exit (range 7) 19398 | -3/Research | Entered another Research area 19398 | -2/Research | Evolved 2 slots: Propulsion x1, Utility x1 19414 | -2/Research | Spotted B-90 Cyclops 19420 | -2/Research | Incoming investigation squad redirected 19757 | -2/Research | Incoming investigation squad redirected 19875 | -2/Research | Discovered new exit (range 10) 19878 | -2/Research | Entered Access 19878 | -1/Access | Evolved 2 slots: Utility x2 19900 | -1/Access | Lost 5 parts (1p2n2u) 20003 | -1/Access | Incoming investigation squad redirected 20047 | -1/Access | Spotted B-99 Colossus 20070 | -1/Access | Spotted B-99 Colossus 20095 | -1/Access | Found Prototype Launcher 20128 | -1/Access | Search patrols dispatched 20175 | -1/Access | Fabricated Imp. Hacking Suite (x1) 20238 | -1/Access | Adv. System Shield fried by hacking feedback 20573 | -1/Access | Fabricated Adv. Hacking Suite? 20628 | -1/Access | Search patrols dispatched 20683 | -1/Access | Found Powered Armor 20693 | -1/Access | Discovered new exit (range 6) 20694 | *** | Escaped! Last Messages --------------- payload. 20651_ S-43 Plague unfolds itself. 20678_ ALERT: Rogue bot located, Programmers report to Access Zone 4U. 20682_ Discarded Core Analyzer. 20683_ Acquired Powered Armor. 20686_ K-01 Serf cleans the Wave Collapse Detector. 20688_ Connecting with Terminal... 20688_ Dropped Powered Armor. 20690_ Dropped Adv. Transmission Jammer. 20691_ Discarded Adv. Corruption Screen. 20693_ Connecting with Terminal... >>Open(Door) Sealed Barrier opened. 20693_ ALERT: Suspicious activity at Terminal A001. Dispatching Investigation squad. 20693_ The Access Shell folds into the floor. 20693_ EXIT=FOUND [Achievement: Tester] Map ----- +----------------------------------------------------+ | ??????????+ " ??????+ !] # #? | | ??????????# """ #???????# # #? | | ??????????# """ #???????# # #? | | ??????????# " +???????# * # #? | | ??????????# #???????# # #? | | ??????????# #???????#+#####+## #? | | ??????????# +???????# #???# #? | | ??????????# ########+###+#???????# #???# #? | | ??????????# #???# #???????# #???# #? | | ??????????# #???# #???????# #???# #? | | ??????????# #???# ######### #???# #? | | ??????????# #???# ## # #???# #? | | ??????????# #???# ## # ##### #? | | ??????????# #???# ## + #? | | ??????????+ #???# ## ####### #? | | ??????????# #???# ## #?????# #? | | ??????????# #???# "" #?????# ? | | ??????????# #???####"#####"#######?????## | | ??????????# #?????####???###????????????# | | ??????????# ####### ##########??????????# | | ??????????# """T""" "??????????# ## | | ??????????# """!""" "????BB????# #? | | ??????????# ! "????BB????#g #? | | ??????????# "??????????? #? | | ??????????# "" "??????????? #? | | ??????????# @" "??????????? ??? | | ??????????# "??????????? ????? | | ??????????# "????BB????????????? | | ??????????# "????BB????????????? | | ??????????# "??????????????????? | | ??????????# ####### ##########??????????????????? | | ??????????# #?????###???????????????????????????? | | ??????????# ????????????????????????????????????? | | ??????????# ????????????????????????????????????? | | ??????????# ????????????????????????????????????? | | ??????????# ????????????????????????????????????? | | ??????????# ????????????????????????????????????? | | ?????????? ????????????????????????????????????? | | ?????????? ????????????????????????????????????? | | ??????????###????????????????????????????????????? | | ?????????????????????????????????????????????????? | | ?????????????????????????????????????????????????? | | ?????????????????????????????????????????????????? | | ?????????????????????????????????????????????????? | | ?????????????????????????????????????????????????? | | ?????????????????????????????????????????????????? | | ?????????????????????????????????????????????????? | | ?????????????????????????????????????????????????? | | ?????????????????????????????????????????????????? | | ?????????????????????????????????????????????????? | +----------------------------------------------------+ Best States ------------- Heat Dissipation 62 Energy Generation 47 Energy Capacity 500 Matter Stores 300 Matter Capacity 300 Sight Range 20 Robot Scan Range 16 Terrain Scan Density 10 ECM Strength 1 Jamming Range 16 Cloak Strength 3 Corruption Block 20 Armor Coverage 450 Power Shielding 66 Propulsion Shielding 90 Utility Shielding 90 Weapon Shielding 66 Weapon Cycling 15 Phase Shifting 5 Evasion (%) 79 Targeting Accuracy 8 Core Analysis 6 Recoil Reduction 4 Matter Filtering 50 Salvage Targeting 4 Offensive Hacking 36 Defensive Hacking 38 Relay Coupler Types 1 Relay Coupler Value 31 Item Schematics ----------------- Great Maul | -8/Materials | Hacked Hacking Suite | -8/Materials | Scanalyzed Shield Generator | -8/Materials | Extracted Lgt. Assault Rifle | -8/Materials | Extracted Arm. Treads | -8/Materials | Extracted Imp. VTOL Module | -8/Materials | Extracted Aluminum Leg | -8/Materials | Extracted Hcp. Storage Unit | -8/Materials | Extracted Reaction Control System | -8/Materials | Extracted Adv. Visual Processing Unit | -8/Materials | Extracted Cld. VTOL Module | -7/Factory | Scanalyzed Missile Launcher | -7/Factory | Extracted Recoil Stabilizer | -7/Factory | Extracted Cooling System | -7/Factory | Extracted Imp. System Shield | -6/Factory | Hacked Imp. Hacking Suite | -6/Factory | Hacked Cld. Plasma Cannon | -6/Factory | Extracted VSS Leg | -6/Factory | Extracted Gui. EMP Blaster | -6/Factory | Scanalyzed Imp. Targeting Computer | -6/Factory | Extracted Katana | -6/Factory | Extracted Gauss Cannon | -6/Factory | Extracted Cold Fusion Reactor | -6/Factory | Scanalyzed Powered Armor | -6/Factory | Hacked Neutron Cannon | -6/Factory | Hacked Greatsword | -6/Factory | Hacked Railgun | -6/Data Miner | Free Hyp. Mass Driver | -6/Data Miner | Free Imp. System Guard | -6/Data Miner | Free Imp. Antigrav System | -6/Data Miner | Free Enh. Coil Gun | -6/Data Miner | Free Imp. Energy Well | -6/Data Miner | Free Cld. Nuclear Pulse Thruster | -6/Data Miner | Free Lgt. Regenerative Plating | -6/Data Miner | Free Combat Drone Bay | -6/Data Miner | Free Adv. System Shield | -5/Factory | Scanalyzed Lrg. Storage Unit | -5/Factory | Extracted System Shield | -5/Factory | Extracted Hvy. Shock Bomb Launcher | -5/Factory | Extracted Imp. Melee Analysis Suite | -5/Factory | Extracted Imp. Reaction Control System | -5/Factory | Extracted Imp. Medium Armor Plating | -5/Factory | Extracted Gyrokinetic Inverter | -5/Factory | Extracted Arm. Medium Treads | -5/Factory | Extracted Mass Driver | -5/Factory | Extracted Flexi-carbon Leg | -5/Factory | Extracted Lrn. Proton Cannon | -5/Factory | Extracted Imp. Particle Charger | -5/Factory | Extracted Adv. Cooling System | -5/Factory | Extracted Imp. Thermal Shield | -5/Factory | Extracted Imp. Surge Thruster | -5/Factory | Extracted Prc. Matter Filter | -5/Factory | Extracted Triangulator | -5/Factory | Extracted Hardlight Generator | -5/Factory | Extracted Adv. Weight Redist. System | -5/Factory | Extracted Spear | -5/Factory | Extracted Adv. ECM Suite | -5/Factory | Extracted Arm. Wheel | -5/Factory | Extracted Gatling Laser | -5/Factory | Extracted Energy Well | -5/Factory | Extracted Adv. Hacking Suite | -5/Factory | Hacked Assault Drone Bay | -5/Zhirov | Free Exp. Heat Sink | -5/Zhirov | Free Exp. Optical Array | -5/Zhirov | Free Imp. Arc Thrower | -5/Zhirov | Free Robot Schematics ------------------ M-22 Extractor | -6/Data Miner | Free A-15 Conveyor | -6/Data Miner | Free B-48 Gladiator | -6/Data Miner | Free Fabricated ------------ Cld. VTOL Module | x1 | -7/Factory Cld. VTOL Module | x1 | -7/Factory Imp. Hacking Suite | x1 | -6/Factory Imp. Hacking Suite | x1 | -6/Factory Greatsword | x2 | -5/Factory Imp. Hacking Suite | x1 | -5/Factory Imp. Hacking Suite | x1 | -5/Factory Imp. Hacking Suite | x1 | -1/Access Adv. Hacking Suite | x1 | -1/Access Alien Tech Used ----------------- Integrated Reactor Achievements -------------- Origins Tester Challenges ------------ None Game ------ Seed ForceMagneticAmplifier Manual? 0 Play Time 05:43:14 Cumulative 85.0 hours Start 2024.09.12 @ 04:13:30 End 2024.09.13 @ 04:14:54 Sessions 13 Manual Loads 0 Difficulty Rogue Special Mode None Game No. 52 Rogue 16 Adventurer 36 Explorer 0 Win Type 0 Total 2 Types 2/0/0/0/0/0/0/0/0 Lore% 42 Gallery% 51 Achievement% 48 Wizard Run 0 Options --------- Layout 1 ASCII 0 Keyboard 0 Movement Numpad Keybinds 0 Fullscreen 1 Font 48/Smallcaps Map View 50x35 Zoom Use 0% Tactical HUD 1 Map Filters NONE Filters NONE Steam 1 RUN: 822f184f-25ef-4aa5-853e-4ac2c03267d7